Cogmind - Beta 15 @@@ ROGUE MODE // 2025.07.30 @ 16:36:15 Player: shapeshifter Result: Destroyed by H-61 Shepherd with Heavy Assault Cannon Performance ------------- Evolutions (2) 1000 Regions Visited (5) 1000 Robots Destroyed (33) 165 Value Destroyed (571) 571 Prototype IDs (23) 460 Alien Tech Used (0) 0 Bonus (411) 411 TOTAL SCORE: 3607 Bonus ------- Follower Combat Kills 111 Aligned with FarCom 300 Cogmind --------- Core Integrity 0/550 Matter 233/300 Energy 100/100 System Corruption 0% Temperature Cool (0) Movement Core (700) Ox13 Location -8/Materials Parts ------- > --- POWER (1) -------- (None) > --- PROPULSION (2) --- (None) > --- UTILITY (6) ------ High-capacity Storage Unit > --- WEAPON (2) ------- (None) > --- INVENTORY (20) --- Light Treads Improved Aluminum Leg Heat Sink Huge Storage Unit Humpback High-capacity Matter Pod (200) Compact Matter Pod (150) Target Analyzer ECM Suite Small Laser Small Laser Guided Plasma Cannon Light Assault Rifle Light Assault Rifle Peak State ------------ > --- POWER ------------ Ion Engine > --- PROPULSION ------- Light Treads Light Treads > --- UTILITY ---------- High-capacity Storage Unit Seismic Detector Targeting Computer Improved Light Armor Plating Improved Light Armor Plating Improved Light Armor Plating > --- WEAPON ----------- Minigun Axe > --- INVENTORY -------- Light Treads Improved Aluminum Leg Compact Wheel Heat Sink Huge Storage Unit Humpback High-capacity Matter Pod Compact Matter Pod Target Analyzer ECM Suite Small Laser Small Laser Guided Plasma Cannon Light Assault Rifle Light Assault Rifle Hammer [Rating: 23] Favorites ----------- Power Ion Engine Engine Ion Engine Propulsion Light Treads Treads Light Treads Wheel Wheel Utility Seismic Detector Device Seismic Detector Storage High-capacity Storage Unit Processor Targeting Computer Protection Improved Light Armor Plating Weapon Light Assault Rifle Energy Gun Small Laser Energy Cannon Guided Plasma Cannon Ballistic Gun Light Assault Rifle Launcher Grenade Launcher Impact Weapon Hammer Slashing Weapon Axe Build | -11 -10 -10 -10 -9 -8 ------- Run | Yrd Mat Min Exi Min Mat Slots Evolved 4 | . . . . . 4 Power . | . . . . . . Propulsion . | . . . . . . Utility 4 | . . . . . 4 Weapon . | . . . . . . Parts Attached 25 | 7 5 1 . . 12 Power 2 | 1 1 . . . . Engine 2 | 1 1 . . . . Core . | . . . . . . Reactor . | . . . . . . Propulsion 6 | 2 2 . . . 2 Treads 3 | 2 . . . . 1 Leg . | . . . . . . Wheel 3 | . 2 . . . 1 Hover . | . . . . . . Flight . | . . . . . . Utility 9 | 2 1 1 . . 5 Device 2 | 1 . 1 . . . Storage 2 | 1 1 . . . . Processor 1 | . . . . . 1 Hackware . | . . . . . . Protection 4 | . . . . . 4 Artifact . | . . . . . . Weapon 8 | 2 1 . . . 5 Energy Gun 2 | 1 . . . . 1 Energy Cannon 1 | . . . . . 1 Ballistic Gun 2 | 1 . . . . 1 Ballistic Cannon . | . . . . . . Launcher 1 | . 1 . . . . Special Weapon . | . . . . . . Impact Weapon 1 | . . . . . 1 Slashing Weapon 1 | . . . . . 1 Piercing Weapon . | . . . . . . Special Melee Weapon . | . . . . . . Unidentified Prototypes . | . . . . . . Parts Lost 17 | . 2 1 . . 14 Power 1 | . . . . . 1 Propulsion 5 | . 2 . . . 3 Utility 7 | . . 1 . . 6 Weapon 4 | . . . . . 4 Highest Loss Streak 14 | . 2 1 . . 14 To Critical Strikes . | . . . . . . Average Backups 10 | 3 6 9 10 11 13 Power . | . . . . . . Propulsion . | 1 1 . . . . Utility 4 | . 2 4 5 5 6 Weapon 4 | 1 2 3 4 5 6 Tool/Special . | . . . . . . Unused Backups 13 | . . 1 1 1 10 Power 1 | . . 1 . . . Propulsion 1 | . . . . . 1 Utility 9 | . . . 1 1 7 Weapon 1 | . . . . . 1 Tool/Special 1 | . . . . . 1 Average Slot Usage (%) 97 | . 98 100 100 100 84 Engine 13 | . 14 14 14 14 7 Treads 25 | . 10 28 28 28 16 Wheel 1 | . 16 . . . . Device 13 | . 14 14 14 14 8 Storage 13 | . 14 14 14 14 9 Protection 2 | . . . . . 16 Energy Gun 1 | . 8 . . . 6 Ballistic Gun 13 | . 14 14 14 14 8 Launcher 11 | . 5 14 14 14 1 Peak Build Rating 23 | 7 7 8 9 9 23 Average Rating 8 | 4 6 7 8 8 16 On Entrance 6 | . 7 7 7 8 9 Naked Turns . | . . . . . . Heaviest Build 59 | 13 50 50 50 50 59 Greatest Support 40 | 40 40 40 40 40 40 Greatest Overweight (x) 13 | . 2 1 1 1 13 Average Overweight (x) . | . . 1 1 1 1 Largest Inventory Capacity 20 | 8 20 20 20 20 20 Average Capacity 19 | 6 14 20 20 20 20 Most Carried 18 | 5 9 10 14 13 18 Average Carried 10 | 3 7 9 12 12 14 Final Capacity 20 | 8 20 20 20 20 20 Final Carried 15 | 4 8 9 12 13 15 Class Distribution -------------------- 100% | Mutant Dominant Class ---------------- Mutant | -10/Materials Mutant | -10/Mines Mutant | -10/Exiles Mutant | -9/Mines Mutant | -8/Materials Resources | -11 -10 -10 -10 -9 -8 ----------- Run | Yrd Mat Min Exi Min Mat Matter Collected 804 | 270 104 68 19 139 204 Remotely . | . . . . . . Salvage Created 880 | 78 250 61 . . 491 Parts 54 | 11 15 2 . . 26 Haulers Intercepted 2 | . . . . . 2 Recyclers Shooed 3 | 1 . . . . 2 Parts Field Recycled . | . . . . . . Retrieved Matter . | . . . . . . Parts Self-Destructed . | . . . . . . Prevented . | . . . . . . Kills | -11 -10 -10 -10 -9 -8 ------- Run | Yrd Mat Min Exi Min Mat Combat Hostiles Destroyed 18 | . 11 2 . . 5 Guns 8 | . 6 . . . 2 AOE 9 | . 5 2 . . 2 Classes Destroyed 8 | 1 5 . . . 2 Worker 1 | . 1 . . . . Builder 4 | . . . . . 4 Tunneler 4 | 4 . . . . . Hauler 2 | . . . . . 2 Recycler 3 | . 1 . . . 2 Watcher 1 | . 1 . . . . Swarmer 9 | . 9 . . . . Grunt 9 | . 2 2 . . 5 Best Kill Streak 8 | 3 7 2 . . 8 Combat Bots Only 6 | . 6 2 . . 3 Max Kills in Single Turn 3 | 1 2 1 . . 3 Gunslinging . | . . . . . . Exploded 2 | . 2 1 . . 2 Melee . | . . . . . . Uniques/NPCs Destroyed . | . . . . . . Combat | -11 -10 -10 -10 -9 -8 -------- Run | Yrd Mat Min Exi Min Mat Hostile Shots Fired 188 | . 59 5 . . 124 Missed 47 | . 13 2 . . 32 Hits 141 | . 46 3 . . 92 Projectile 141 | . 46 3 . . 92 Critical Strikes 3 | . . . . . 3 Damage Taken 2753 | . 436 105 . . 2212 Core 757 | . 160 12 . . 585 Absorbed by Shields . | . . . . . . Core Remaining (%) 65 | 100 . . . 31 . Volleys Fired 79 | 10 22 6 . . 41 Largest 2 | 2 2 1 . . 2 Hottest 65 | 60 60 30 . . 65 Shots Fired 140 | 20 39 6 . . 75 Gun 125 | 20 34 . . . 71 Cannon . | . . . . . . Launcher 15 | . 5 6 . . 4 Special . | . . . . . . Kinetic 64 | 10 17 . . . 37 Thermal 61 | 10 17 . . . 34 Explosive 15 | . 5 6 . . 4 Electromagnetic . | . . . . . . Robot Hit Streak 7 | 5 7 1 . . 7 Robot Miss Streak 4 | 2 4 2 . . 3 Penetration Max . | . . . . . . Secondary Targets 2 | . 1 . . . 1 Max Gunslinging Chain 1 | . 1 . . . 1 Shots Hit Robots 96 | 11 20 2 . . 63 Core Hits 61 | 7 23 5 . . 26 Critical Kills . | . . . . . . Critical Parts Destroyed 1 | . . . . . 1 Critical Strikes 1 | . . . . . 1 Smash 1 | . . . . . 1 Melee Attacks 13 | . . . . . 13 Impact 13 | . . . . . 13 Slashing . | . . . . . . Piercing . | . . . . . . Sneak Attacks . | . . . . . . Combat Hostiles . | . . . . . . Follow-up Attacks . | . . . . . . Damage Inflicted 2267 | 104 741 142 . . 1280 Guns 1049 | 104 177 . . . 768 Cannons . | . . . . . . Explosions 1055 | . 564 142 . . 349 Melee 163 | . . . . . 163 Ramming . | . . . . . . Kinetic 580 | 49 41 . . . 490 Thermal 469 | 55 136 . . . 278 Explosive 1055 | . 564 142 . . 349 Electromagnetic . | . . . . . . Impact 163 | . . . . . 163 Slashing . | . . . . . . Piercing . | . . . . . . Highest Corruption . | . . . . . . Average Corruption . | . . . . . . Corruption Purged . | . . . . . . Corruption Blocked . | . . . . . . Overload Shots . | . . . . . . Overflow Damage 90 | . 50 . . . 40 Projectiles . | . . . . . . Explosions 60 | . 50 . . . 10 Melee 30 | . . . . . 30 Knockbacks . | . . . . . . Impact . | . . . . . . Kinetic . | . . . . . . Secondary . | . . . . . . Self-Inflicted Damage 120 | . 43 76 . . 1 Shots 8 | . 4 3 . . 1 Rammed . | . . . . . . Targets Rammed . | . . . . . . Kicked . | . . . . . . Crushed . | . . . . . . Highest Temperature 118 | 40 60 1 . . 118 Average Temperature 36 | 20 26 1 . . 44 Received Heat Transfer 741 | . 30 18 . . 693 Siege Activations . | . . . . . . Martial Activations . | . . . . . . Shielding Activations . | . . . . . . Robots Disrupted . | . . . . . . Combat Hostiles . | . . . . . . Robots Corrupted 1 | . . . . . 1 Combat Hostiles 1 | . . . . . 1 Parts Fried 1 | . . . . . 1 Impact Corruptions 1 | . . . . . 1 Robots Melted . | . . . . . . Combat Hostiles . | . . . . . . Parts Melted . | . . . . . . Heat Transferred 1050 | 125 300 . . . 625 Parts Sabotaged . | . . . . . . Parts Stolen . | . . . . . . Parts Stripped . | . . . . . . Power Chain Reactions . | . . . . . . Alert | -11 -10 -10 -10 -9 -8 ------- Run | Yrd Mat Min Exi Min Mat Maximum Alert Level 1 | . 1 . . . . Low Security (%) 99 | 100 99 100 . 100 100 Level 1 . | . . . . . . Level 2 . | . . . . . . Level 3 . | . . . . . . Level 4 . | . . . . . . Level 5 . | . . . . . . High Security . | . . . . . . Max Security . | . . . . . . Peak Influence 195 | 15 195 74 . . 109 Initial 56 | . . 56 . . . Average 21 | 1 100 10 . . 33 Influence Increases 706 | 20 292 90 . . 304 Destroy 0b10 Robot/C 420 | . 220 40 . . 160 Destroy 0b10 Robot/NC 75 | 20 15 . . . 40 Destroy Leader 76 | . 32 10 . . 34 Allied During Kill 15 | . . . . . 15 Successful Hack 31 | . 17 . . . 14 Disable Machine 15 | . . 15 . . . Destroy Structure 59 | . 8 25 . . 26 Lose Combat Pursuer 15 | . . . . . 15 Influence Decreases 706 | 20 147 235 . . 304 Entered New Map 89 | . . 89 . . . Time Decay 430 | 20 127 136 . . 147 Lost Part 147 | . 20 10 . . 117 Lost Ally 40 | . . . . . 40 Squads Dispatched 3 | . 1 . . . 2 Investigation 1 | . 1 . . . . Extermination . | . . . . . . Reinforcement 2 | . . . . . 2 Assault . | . . . . . . Garrison . | . . . . . . Intercept . | . . . . . . Searches Triggered . | . . . . . . Construction Impeded . | . . . . . . Haulers Reinforced . | . . . . . . Active Scanning Responses . | . . . . . . Cargo Convoy Interrupts . | . . . . . . Stealth | -11 -10 -10 -10 -9 -8 --------- Run | Yrd Mat Min Exi Min Mat Distress Signals 2 | . . . . . 2 Communications Jammed . | . . . . . . Distress Signals . | . . . . . . Times Spotted 30 | . 12 2 . . 16 Peak Tracking Total 7 | . 6 2 . . 7 Tactical Retreats 1 | . . . . . 1 Traps | -11 -10 -10 -10 -9 -8 ------- Run | Yrd Mat Min Exi Min Mat Traps Triggered . | . . . . . . Indirectly . | . . . . . . Trap Hack Attempts . | . . . . . . Triggered . | . . . . . . Disarmed 1 | . 1 . . . . Reprogrammed . | . . . . . . Reused . | . . . . . . Traps Extracted . | . . . . . . Installed . | . . . . . . Triggered . | . . . . . . Machines | -11 -10 -10 -10 -9 -8 ---------- Run | Yrd Mat Min Exi Min Mat Machines Disabled 1 | . . 1 . . . Max in Single Turn 1 | . . 1 . . . Machines Repaired . | . . . . . . Machines Dismantled . | . . . . . . Machines Sabotaged . | . . . . . . Overloaded Fab Kills . | . . . . . . Hacking | -11 -10 -10 -10 -9 -8 --------- Run | Yrd Mat Min Exi Min Mat Machines Accessed 5 | . 3 . 1 . 1 Terminals 4 | . 3 . . . 1 Fabricators . | . . . . . . Repair Stations . | . . . . . . Recycling Units . | . . . . . . Scanalyzers . | . . . . . . Garrison Access . | . . . . . . Total Hacks 17 | . 14 . 1 . 2 Successful 9 | . 7 . 1 . 1 Failed 8 | . 7 . . . 1 Catastrophic 2 | . 2 . . . . Database Lockouts . | . . . . . . Manual 14 | . 11 . 1 . 2 Terminals 16 | . 14 . . . 2 Fabricators . | . . . . . . Repair Stations . | . . . . . . Recycling Units . | . . . . . . Scanalyzers . | . . . . . . Garrison Access . | . . . . . . Terminal Hacks 6 | . 5 . 1 . . Robot Analysis 1 | . 1 . . . . Branch Access Points 1 | . 1 . . . . Locate Traps 1 | . 1 . . . . Disarm Traps 1 | . 1 . . . . Zone Layout 1 | . 1 . . . . Proto ID Catalog 1 | . . . 1 . . Fabricator Hacks . | . . . . . . Repair Station Hacks . | . . . . . . Recycling Unit Hacks . | . . . . . . Scanalyzer . | . . . . . . Garrison Access Hacks . | . . . . . . Unauthorized Hacks 3 | . 2 . . . 1 Terminals 3 | . 2 . . . 1 Botnet 3 | . 2 . . . 1 Fabricators . | . . . . . . Repair Stations . | . . . . . . Recycling Units . | . . . . . . Scanalyzers . | . . . . . . Garrison Access . | . . . . . . Data Cores Recovered . | . . . . . . Used . | . . . . . . Hacking Detections 3 | . 2 . . . 1 Full Trace Events 2 | . 2 . . . . Feedback Events . | . . . . . . Feedback Blocked . | . . . . . . Robot Schematics Acquired . | . . . . . . Robots Built . | . . . . . . Authchips . | . . . . . . Time . | . . . . . . Total Robot Build Rating . | . . . . . . Part Schematics Acquired . | . . . . . . Parts Built . | . . . . . . Authchips . | . . . . . . Time . | . . . . . . Total Part Build Rating . | . . . . . . Parts Repaired . | . . . . . . Time . | . . . . . . Parts Recycled . | . . . . . . Recycled Matter . | . . . . . . Retrieved Matter . | . . . . . . Retrieved Components . | . . . . . . Parts Scanalyzed . | . . . . . . Part Schematics Acquired . | . . . . . . Parts Damaged . | . . . . . . Bothacking | -11 -10 -10 -10 -9 -8 ------------ Run | Yrd Mat Min Exi Min Mat Used RIF Installer . | . . . . . . Robots Hacked . | . . . . . . Non-combat . | . . . . . . Combat . | . . . . . . Robot Hacks Applied . | . . . . . . Relay Couplers Released . | . . . . . . Fabnet Peak Effective % . | . . . . . . Robots Rewired . | . . . . . . Allies Hacked . | . . . . . . Hacks Repelled . | . . . . . . Allies | -11 -10 -10 -10 -9 -8 -------- Run | Yrd Mat Min Exi Min Mat Total Allies 5 | . . 2 . 3 . Largest Group 3 | . . 2 2 3 3 Highest-Rated Group 40 | . . 38 38 40 40 Highest-Rated Ally 31 | . . 31 31 16 16 Total Orders . | . . . . . . Ally Attacks 34 | . . . . . 34 Total Damage 367 | . . . . . 367 Kills 3 | . . . . . 3 Allies Corrupted . | . . . . . . Allies Melted . | . . . . . . Intel | -11 -10 -10 -10 -9 -8 ------- Run | Yrd Mat Min Exi Min Mat Active Infowar (turns) 3558 | 1 287 1289 1053 472 456 Seismic 3558 | 1 287 1289 1053 472 456 Robot Analysis Total 1 | . 1 . . . . Derelict Logs Recovered 2 | . . 2 . . . Drone Launches . | . . . . . . Drone Recoveries . | . . . . . . Exploration | -11 -10 -10 -10 -9 -8 ------------- Run | Yrd Mat Min Exi Min Mat Turns Passed 3750 | 169 287 1292 1053 472 477 Spaces Moved 1523 | 85 170 523 438 190 117 Core 12 | 11 . . . . 1 Treads 1382 | 74 43 523 438 190 114 Legs . | . . . . . . Wheels 129 | . 127 . . . 2 Hover . | . . . . . . Flight . | . . . . . . Fastest Speed 50 | 50 80 240 240 240 130 Average Speed 222 | 145 126 240 240 240 242 Slowest Speed 700 | 160 240 240 240 240 700 Overloaded Moves . | . . . . . . Propulsion Burnouts . | . . . . . . Robots Hopped . | . . . . . . Potential Cave-ins . | . . . . . . Cave-ins Triggered . | . . . . . . Exploration Rate (%) 47 | 7 33 93 91 46 13 Regions Visited 5 Branch Regions 3 Pre-discovered Areas 2 | . . 2 . . . Known Exits Taken 1 | . 1 . . . . Unknown Exits Taken 4 | 1 . 1 1 1 . Scrap Searched 1 | . . 1 . . . Spaces Dug . | . . . . . . Terrain Destroyed 65 | . 10 33 . . 22 Melee . | . . . . . . Projectile . | . . . . . . AOE 65 | . 10 33 . . 22 Terrain Rammed . | . . . . . . Walls Destroyed . | . . . . . . Machines Disabled . | . . . . . . Actions | -11 -10 -10 -10 -9 -8 --------- Run | Yrd Mat Min Exi Min Mat Total 1743 | 112 207 555 441 208 220 Wait 55 | . . 22 . 14 19 Move 1518 | 84 169 522 437 189 117 Hop . | . . . . . . Pick Up 39 | 11 7 3 3 3 12 Fast Attach . | . . . . . . Attach 20 | 7 2 1 . . 10 Detach 2 | . . . . . 2 Swap 9 | . 5 . . . 4 Drop 8 | . 2 1 1 2 2 Fire 79 | 10 22 6 . . 41 Melee 13 | . . . . . 13 Ram . | . . . . . . Kick . | . . . . . . Crush . | . . . . . . Escape Stasis . | . . . . . . Rewire . | . . . . . . Trap . | . . . . . . Miscellaneous . | . . . . . . Route ------- -11/Scrapyard -10/Materials (discovered 2 exits: *Min x2) -10/Mines (discovered 3 exits: [*Mat] / *Exi / [*Sub]) -10/Exiles -9/Mines -8/Materials History --------- Turn | Location | Event 4 | -11/Scrapyard | Discovered new exit (range 15) 170 | -11/Scrapyard | Entered Materials 190 | -10/Materials | Identified exit to Mines 313 | -10/Materials | Build established: Mutant 342 | -10/Materials | Core integrity fell below 50% 457 | -10/Materials | Entered Mines 504 | -10/Mines | Learned location of Storage (-7) 606 | -10/Mines | Discovered new exit (range 15) 1628 | -10/Mines | Discovered new exit (range 10) 1736 | -10/Mines | Deemed a non-threat by the Exiles lab entrance 1739 | -10/Mines | Discovered new exit (range 5) 1749 | -10/Mines | Entered Exiles 1749 | -10/Exiles | Accompanied by 2 allies 1779 | -10/Exiles | Led the pair of lost Derelicts to a safe place 1807 | -10/Exiles | Met 8R-AWN 1850 | -10/Exiles | Met EX-HEX 2033 | -10/Exiles | Visited The Gauntlet 2284 | -10/Exiles | Met EX-DEC 2390 | -10/Exiles | Met EX-BIN 2416 | -10/Exiles | Aligned with FarCom system 2419 | -10/Exiles | Given EX-Vault access code 2474 | -10/Exiles | Opened EX-Vault 2491 | -10/Exiles | Found Gui. Plasma Cannon 2535 | -10/Exiles | Warned to stay clear of 0b10 Research branches 2708 | -10/Exiles | Discovered new exit (range 15) 2802 | -10/Exiles | Left Exiles lab with Gui. Plasma Cannon 2802 | -10/Exiles | Entered Mines 2948 | -9/Mines | Assisted by bots powering up and referring to "LRC-V3" 3191 | -9/Mines | Discovered new exit (range 13) 3274 | -9/Mines | Entered Materials 3274 | -8/Materials | Accompanied by 3 allies 3274 | -8/Materials | Evolved 4 slots: Utility x4 3730 | -8/Materials | Core integrity fell below 50% 3746 | -8/Materials | Core integrity fell below 20% 3751 | -8/Materials | Destroyed by H-61 Shepherd with Heavy Assault Cannon Last Messages --------------- 03734_ K-01 Serf collects debris. 03734_ W-25 Informer sends out distress signal. 03734_ U-05 Engineer lays Concrete. 03735_ K-01 Serf cleans the Fusion Modulator. 03735_ Lgt. Treads destroyed. 03735_ Knocked back. 03735_ U-05 Engineer lays Concrete. 03737_ Com. Wheel destroyed. 03737_ U-05 Engineer lays Concrete. 03739_ U-05 Engineer builds a Wall. 03740_ Penetrated by Slug. 03740_ Hammer destroyed. 03743_ U-05 Engineer builds a Wall. 03743_ U-05 Engineer lays Concrete. 03745_ Knocked back. 03745_ K-01 Serf cleans the Nuclear Reactor. 03747_ U-05 Engineer builds a Wall. 03749_ U-05 Engineer lays Concrete. 03750_ U-05 Engineer builds a Wall. 03750_ K-01 Serf collects debris. Map ----- +----------------------------------------------------+ | ?????????????????????????????????????????????????? | | ?????????????????????????????????????????????????? | | ?????????????????????????????????????????????????? | | ?????????????????????????????????????????????????? | | ?????????????????????????????????????????????????? | | ?????????????????????????????????????????????????? | | ????????#####????????????????????????????????????? | | ????????+ ????????????????????????????????????? | | ????????# ????#??????##+####??T##"????????????? | | ????????# ! """ #??????? ? ????????????? | | ????????# """ #??????? ?????????????? | | ????????# #??????? """ """ "??????????? | | ????????# """ #???????# """ """ ""?????????? | | ????????# """ #???????# """ """ """ ???????? | | ????????# """ #???????# ???????? | | ????????# #???????# % ??????? | | #############+############ % ??????? | | [! % % ??????? | | ! ??????? | | !!! % ??????? | | #############+######### #/##;####### ??????? | | !???????# #??## % # #???????????????? | | ?????# = #???# %# #???????????????? | | ???# #???#!*%#% #???????????????? | | #?# #???#%!%% #????s??????????? | | #?# #???#!%@# #????ss?????????? | | "" """ #?# """ #??##=!=== #???????????????? | | "" """ +?# """ #??##H=gk#######???????????????? | | "" """ #?# """ #??##=g=# "????????????????????? | | #####??#?# #??##=%%# """??????????????????? | | ?????????##########??##%=u#%""" ?????????????????? | | ????????????????????? #* u# ?????????????????? | | ???????????????????? + g !????????????????? | | ???????????????????? # ! ????????????????? | | ??????????????????? + g= ???????????????? | | ?????????????????? #% [# ???????????????? | | ?????????????????? #[%= #####???????????????? | | ?????????????????###### %g ###???????????????????? | | ?????????????????????? #?????????????????????? | | ???????????????????w?? ?????????????????????? | | ?????????????????????? ??????????????????????? | | ?????????????????????? ??????????????????????? | | ?????????????????????????????????????????????????? | | ?????????????????????????????????????????????????? | | ?????????????????????????????????????????????????? | | ?????????????????????????????????????????????????? | | ?????????????????????????????????????????????????? | | ?????????????????????????????????????????????????? | | ?????????????????????????????????????????????????? | | ?????????????????????????????????????????????????? | +----------------------------------------------------+ Best States ------------- Heat Dissipation 31 Energy Generation 10 Energy Capacity 250 Matter Stores 300 Matter Capacity 300 Sight Range 16 Terrain Scan Density 10 Armor Coverage 450 Evasion (%) 50 Targeting Accuracy 5 Recoil Reduction 2 Item Schematics ----------------- None Robot Schematics ------------------ None Fabricated ------------ Nothing Repaired ---------- Nothing Alien Tech Used ----------------- None Achievements -------------- None Challenges ------------ None Game ------ Seed KineticCoilBattery Manual? 0 Play Time 00:19:05 Cumulative 78.2 hours Start 2025.07.30 @ 16:17:53 End 2025.07.30 @ 16:36:15 Sessions 1 Manual Loads 0 Difficulty Rogue Special Mode None Game No. 158 Rogue 158 Adventurer 0 Explorer 0 Win Type - Total 1 Types 1/0/0/0/0/0/0/0/0/0 Lore% 56 Gallery% 53 Achievement% 40 Wizard Run 0 Options --------- Layout 1 ASCII 0 Keyboard 0 Movement Mouse Keybinds 0 Fullscreen 1 Font 24/Smallcaps Map View 50x40 Zoom Use 0% Tactical HUD 1 Map Filters NONE Filters NONE Steam 1 RUN: 03906d98-9c47-4755-b9a0-41fa9aeddc3a